bitfinex-derivatives/quotes_ETHF0:USTF0_20250917
["timestamp","ask_amount","ask_price","bid_price","bid_amount"]
[1758110932621,1.3679173,4488.5,4488.4,0.0222]
[1758110934833,0.3096,4488.4,4487.6,0.3134]
[1758110935034,0.7053,4487.7,4487.6,0.5112]
[1758110935332,0.9293,4487.7,4487.6,0.5112]
[1758110936929,0.6197,4487.7,4487.6,0.7133]
[1758110938333,0.9214,4487.7,4487.6,0.7248]
[1758110938634,0.6197,4487.7,4487.6,0.7248]
[1758110940333,0.9214,4487.7,4487.6,0.7248]
[1758110941324,0.9214,4487.7,4487.2,3.2078]
[1758110941525,0.7196,4487.6,4487.5,0.2043]
[1758110941730,0.7196,4487.4,4487.3,0.31]
[1758110941931,0.7196,4487.4,4486.8,0.0222]
[1758110941932,0.9436,4487.4,4486.8,0.0222]
[1758110942127,0.9436,4487.4,4487.1,0.31]
[1758110942529,0.9436,4487.4,4486.8,0.0222]
[1758110943232,0.9436,4487.4,4487.1,0.31]
[1758110943429,0.9436,4487.4,4486.9,0.31]
[1758110943625,0.4179,4486.9,4486.8,0.0222]
[1758110943830,0.6419,4486.9,4486.8,0.7436]
[1758110944333,0.9436,4486.9,4486.8,0.7214]
[1758110945331,0.9436,4486.9,4486.6,0.31]
[1758110945538,0.9436,4486.9,4486.5,0.1253]
[1758110945830,3.2078,4486.8,4486.5,0.1253]
[1758110946035,3.2078,4486.8,4486.6,0.5143]
[1758110946036,0.7196,4486.7,4486.6,0.5143]
[1758110946434,0.7196,4486.7,4486.4,0.31]
[1758110946636,0.7196,4486.5,4486.4,0.5143]
[1758110947340,0.8369,4486.5,4485.9,0.3057]
[1758110947542,0.8369,4486.5,4485.8,0.0222]
[1758110947735,0.8369,4486.5,4486.2,0.3057]
[1758110947939,0.697,4486.2,4486.1,0.21051143]
[1758110948136,0.921,4486.2,4486.1,0.21051143]
[1758110948642,0.921,4486.2,4486.1,0.51621143]
[1758110950042,3.2078,4486.3,4486.2,0.3057]
[1758110950241,3.6292,4486.3,4486.2,0.7273]
[1758110950441,4.1288,4486.3,4486.2,0.7273]
[1758110952743,4.1288,4486.3,4486.2,0.5121]
[1758110953046,3.9048,4486.3,4486.2,0.7273]
[1758110953239,4.1288,4486.3,4486.2,0.7273]
[1758110954042,3.9048,4486.3,4486.2,0.7273]
[1758110954340,3.6292,4486.3,4486.2,0.7273]
[1758110954538,4.1288,4486.3,4486.2,0.7273]
[1758110958145,4.1288,4486.3,4486.2,0.5121]
[1758110959841,4.1288,4486.3,4486.2,0.3057]
[1758110962343,4.6729589,4486.3,4486.2,0.3057]
[1758110963439,4.3732589,4486.3,4486.2,0.7273]
[1758110963645,3.8291,4486.3,4486.2,0.7273]
[1758110963839,3.6051,4486.3,4486.2,0.7273]
[1758110964042,3.8291,4486.3,4486.2,0.7273]
[1758110964439,3.4318,4486.3,4486.2,0.7273]
[1758110965036,3.6292,4486.3,4486.2,0.7273]
[1758110965947,0.9131,4486.5,4486.2,0.7273]
[1758110966148,0.9131,4486.5,4486.4,0.7273]
[1758110966644,0.9131,4486.5,4486.4,4.95018999]
[1758110966838,0.9131,4486.5,4486.4,4.7273]
[1758110970047,0.9131,4486.5,4486.4,7.9351]
[1758110977051,0.9131,4486.5,4486.1,0.00411143]
[1758110977052,1.6185,4486.5,4486.1,0.00411143]
[1758110977250,1.7358,4486.5,4486.2,0.321]
[1758110977448,1.7358,4486.5,4486.1,0.00411143]
[1758110977645,1.7358,4486.5,4486.2,0.321]
[1758110977853,0.224,4488.7,4486.4,3.6153]
[1758110977854,0.1169,4488.5,4486.4,3.6153]
[1758110978054,0.2979,4487.9,4487.8,3.2078]
[1758110978645,0.5076,4487.9,4487.8,3.2078]
[1758110982450,0.7177,4487.9,4487.8,3.2078]
[1758110982853,0.7177,4487.9,4487.3,0.0222]
[1758110983056,1.3309,4488.0,4487.3,0.0222]
[1758110983057,0.7177,4487.4,4487.3,0.0222]
[1758110983255,0.9417,4487.4,4487.3,0.0222]
[1758110983862,0.2979,4487.3,4487.1,3.2078]
[1758110984160,0.7177,4487.2,4487.1,3.2078]
[1758110984360,0.7316,4487.2,4487.1,3.2078]
[1758110986362,0.5219,4487.2,4487.1,3.2078]
[1758110987664,0.7316,4487.2,4487.1,3.2078]
[1758110989568,0.2979,4487.2,4487.1,3.2078]
[1758110990868,0.7022,4487.3,4487.1,3.2078]
[1758110991766,0.0548,4487.3,4487.1,3.2078]
[1758110992066,0.2979,4487.3,4487.2,0.224]
[1758110995071,0.2979,4487.3,4487.2,4.224]
[1758111003773,0.5076,4487.3,4487.2,4.224]
[1758111005273,0.2979,4487.3,4487.2,4.224]
[1758111008077,0.2976,4488.0,4487.2,0.224]
[1758111008277,0.2976,4488.0,4487.9,3.2078]
[1758111008973,0.4985,4488.0,4487.9,3.2078]
[1758111009274,0.2976,4488.0,4487.9,3.2078]
[1758111009871,0.0987,4488.0,4487.9,3.2078]
[1758111010177,0.5946,4488.0,4487.9,3.2078]
[1758111011879,0.3957,4488.0,4487.9,3.2078]
[1758111012382,0.5946,4488.0,4487.9,3.2078]
[1758111015682,0.7955,4488.0,4487.9,3.2078]
[1758111022185,0.3957,4488.0,4487.9,3.2078]
[1758111022581,0.3957,4488.0,4487.9,3.4318]
[1758111026478,0.7955,4488.0,4487.9,3.2078]
[1758111029083,0.5946,4488.0,4487.9,3.2078]
[1758111029286,0.3957,4488.0,4487.9,3.2078]
[1758111030388,1.68,4488.2,4487.9,7.2078]
[1758111030590,0.118,4489.0,4488.0,0.44681]
[1758111030782,0.297,4488.4,4488.0,0.224]
[1758111031086,0.1226,4488.5,4488.3,3.2078]
[1758111031287,0.1226,4488.5,4488.4,0.224]
[1758111033293,0.1226,4488.5,4488.4,4.224]
[1758111034688,1.5764,4488.9,4488.6,0.40087]
[1758111034887,0.1226,4489.0,4488.8,3.2078]
[1758111035189,0.1226,4489.5,4489.0,0.40084]
[1758111035396,0.1226,4489.5,4489.4,3.2078]
[1758111035596,0.1226,4489.5,4489.4,3.4318]
[1758111036090,0.1226,4490.0,4489.4,3.4318]
[1758111036297,0.1226,4490.5,4489.9,3.2078]
[1758111036589,0.1226,4490.5,4490.4,3.2078]
[1758111036795,0.4336,4490.5,4490.4,3.4328]
[1758111040092,0.311,4490.8,4490.4,7.4328]
[1758111040296,0.311,4490.8,4490.6,0.4007]
[1758111040491,0.311,4490.8,4490.7,0.225]
[1758111048013,1.8055,4491.2,4490.7,4.225]
[1758111048207,1.8055,4491.2,4491.1,3.2078]
[1758111048407,1.8055,4491.2,4491.1,3.4328]
[1758111048608,0.321,4491.5,4491.1,3.4328]
[1758111049913,0.1226,4491.5,4491.1,3.4328]
[1758111050114,0.311,4491.4,4491.1,3.4328]
[1758111050317,0.1226,4491.5,4491.1,3.4328]
[1758111050519,0.1984,4491.2,4491.1,3.4328]
[1758111050713,0.5094,4491.2,4491.1,3.4328]
[1758111051012,0.311,4491.2,4491.1,3.4328]
[1758111052717,2.2027,4491.5,4491.1,3.83346]
[1758111053108,1.8917,4491.5,4491.1,3.4328]
[1758111053314,2.2027,4491.5,4491.3,0.40064]
[1758111053509,2.2027,4491.5,4491.4,0.225]
[1758111053711,1.2678,4491.5,4491.4,0.225]
[1758111054616,0.4336,4491.5,4491.4,0.225]
[1758111055416,0.632,4491.5,4491.4,0.225]
[1758111055619,0.8452,4491.5,4491.4,0.225]
[1758111060820,0.632,4491.5,4491.4,0.225]
[1758111062018,0.8341,4491.5,4491.4,0.225]
[1758111066124,0.8341,4491.5,4491.2,0.0222]
[1758111066325,0.8341,4491.5,4491.3,0.224]
[1758111068821,0.3104,4491.4,4491.3,0.62464]
[1758111069021,0.5166,4491.4,4491.3,0.62464]
[1758111069422,0.729,4491.4,4491.3,0.224]
[1758111070126,0.729,4491.4,4491.2,0.0222]
[1758111070326,0.729,4491.4,4491.3,0.224]
[1758111077133,0.3104,4491.3,4491.1,3.2078]
[1758111077330,0.729,4491.3,4491.2,0.224]
[1758111078735,0.729,4491.3,4491.2,0.62465]
[1758111081441,0.729,4491.3,4491.2,2.61033751]
[1758111082431,1.7555,4491.8,4491.7,0.7306]
[1758111082636,1.9617,4491.8,4491.7,4.1624]
[1758111083038,1.9617,4491.8,4491.7,4.56301]
[1758111083537,1.9617,4491.8,4491.7,4.1624]
[1758111084546,2.2721,4491.8,4491.7,4.1624]
[1758111085045,2.2721,4491.8,4491.7,3.9384]
[1758111085344,2.2721,4491.8,4491.7,4.1624]
[1758111085545,1.5431,4491.8,4491.7,4.563]
[1758111085946,1.8535,4491.8,4491.7,4.563]
[1758111086246,1.1473,4491.8,4491.7,4.563]
[1758111086447,1.3535,4491.8,4491.7,4.1624]
[1758111087048,1.3535,4491.8,4491.7,4.34271699]
[1758111087447,1.3535,4491.8,4491.7,6.3448255]
[1758111087644,0.43,4492.5,4491.7,5.6142255]
[1758111087946,0.43,4492.5,4492.4,3.9384]
[1758111087947,0.8486,4492.5,4492.4,3.9384]
[1758111088250,0.729,4492.5,4492.4,4.1634]
[1758111089145,0.8512,4492.5,4492.4,3.8419]
[1758111090250,0.8512,4492.5,4492.4,4.1634]
[1758111090452,0.8512,4492.5,4492.4,3.8419]
[1758111090848,0.8512,4492.5,4492.4,3.4328]
[1758111092657,0.8512,4492.5,4492.4,3.6295]
[1758111092962,0.729,4492.5,4492.4,4.1634]
[1758111093457,0.5166,4492.5,4492.4,4.1634]
[1758111093654,0.3104,4492.5,4492.4,4.1634]
[1758111094362,1.6167,4492.6,4492.5,1.25553]
[1758111094552,1.6167,4492.6,4492.5,0.855]
[1758111095155,1.6167,4492.6,4492.5,1.25553]
[1758111095561,1.6167,4492.6,4492.5,3.25763851]
[1758111096360,1.6167,4492.6,4492.5,3.35823851]
[1758111096361,2.1333,4492.6,4492.5,3.35823851]
[1758111096556,1.6167,4492.6,4492.5,1.48053]
[1758111096755,1.6167,4492.6,4492.5,1.65895541]
[1758111097154,0.304,4493.4,4492.8,0.4005]
[1758111097361,0.6976,4493.4,4493.3,3.4094]
[1758111097557,0.6976,4493.4,4493.3,3.6344]
[1758111098063,0.5009,4493.4,4493.3,4.1536]
[1758111098257,0.304,4493.4,4493.3,4.1536]
[1758111098460,0.5009,4493.4,4493.3,4.1536]
[1758111098766,0.6976,4493.4,4493.3,3.8419]
[1758111099266,0.6976,4493.4,4493.3,3.6344]
[1758111100762,0.6976,4493.4,4493.3,3.4328]
[1758111101068,0.6976,4493.4,4493.3,3.6344]
[1758111101467,0.5009,4493.4,4493.3,4.1536]
[1758111102567,0.6976,4493.4,4493.3,3.8419]
[1758111102769,0.6976,4493.4,4493.3,3.6344]
[1758111104068,0.6976,4493.4,4493.3,3.4328]
[1758111104270,0.6976,4493.4,4493.3,3.2078]
[1758111104469,0.6976,4493.4,4493.3,3.6334]
[1758111105867,0.6976,4493.4,4493.3,4.1526]
[1758111110868,0.6976,4493.4,4493.3,3.6334]
[1758111111771,0.6976,4493.4,4493.3,3.9451]
[1758111112371,0.6976,4493.4,4493.3,3.6334]
[1758111112562,0.6976,4493.4,4493.3,4.1526]
[1758111114574,1.7286,4493.8,4493.3,4.1526]
[1758111114771,0.5009,4493.6,4493.5,0.4091]
[1758111115073,0.6976,4493.6,4493.5,0.9448]
[1758111116374,0.3025,4493.7,4493.6,0.7193]
[1758111116581,0.7132,4493.7,4493.6,0.7193]
[1758111117975,1.7286,4493.8,4493.6,0.4063]
[1758111118276,2.1393,4493.8,4493.7,0.9433]
[1758111118576,0.4107,4493.8,4493.7,0.9433]
[1758111118778,0.7132,4493.8,4493.7,0.9433]
[1758111120882,0.3025,4493.8,4493.7,0.9433]
[1758111121184,0.5137,4493.8,4493.7,0.9433]
[1758111121382,0.7132,4493.8,4493.7,0.9433]
[1758111121777,0.7132,4493.8,4493.7,0.6303]
[1758111122083,0.7132,4493.8,4493.7,0.4355]
[1758111122578,0.7132,4493.8,4493.7,0.7485]
[1758111122780,0.7132,4493.8,4493.7,0.9433]
[1758111123984,0.3025,4493.9,4493.8,0.7193]
[1758111124782,0.5137,4493.9,4493.8,0.7193]
[1758111125688,0.7132,4493.9,4493.8,0.4063]
[1758111126584,0.7132,4493.9,4493.8,0.6303]
[1758111126984,0.7132,4493.9,4493.8,0.9333]
[1758111127178,0.5137,4493.9,4493.8,0.9333]
[1758111127374,1.6846,4494.1,4494.0,0.543]
[1758111127683,1.6846,4494.1,4494.0,6.05590851]
[1758111128188,1.6846,4494.1,4494.0,4.0538]
[1758111129086,1.6846,4494.1,4494.0,4.2778]
[1758111130484,1.6846,4494.1,4494.0,4.45980818]
[1758111131885,3.2078,4495.9,4494.6,0.4194]
[1758111132086,0.4064,4495.0,4494.9,3.9302]
[1758111132286,0.4064,4495.0,4494.9,4.1542]
[1758111134088,0.7033,4495.0,4494.9,4.1542]
[1758111134282,0.824,4495.0,4494.9,3.2078]
[1758111134478,0.824,4495.0,4494.9,0.224]
[1758111134884,0.824,4495.0,4494.9,0.7399]
[1758111135584,0.7033,4495.0,4494.9,4.1542]
[1758111138594,0.4064,4495.0,4494.9,4.1542]
[1758111139199,0.1958,4495.0,4494.9,4.1542]
[1758111141499,0.7033,4495.0,4494.9,4.1542]
[1758111145602,0.1958,4495.0,4494.9,4.1542]
[1758111145803,0.1958,4495.0,4494.9,3.9302]
[1758111146102,0.4927,4495.0,4494.9,4.1542]
[1758111146598,0.7033,4495.0,4494.9,3.9302]
[1758111146798,0.824,4495.0,4494.9,3.4207]
[1758111147103,0.824,4495.0,4494.9,3.6447]
[1758111147801,0.824,4495.0,4494.9,3.9477]
[1758111148500,0.7033,4495.0,4494.9,3.9477]
[1758111152108,0.7033,4495.0,4494.9,4.1542]
[1758111152608,0.7033,4495.0,4494.8,0.224]
[1758111152609,4.824,4495.0,4494.8,0.224]
[1758111153001,5.04647,4495.0,4494.8,0.224]
[1758111153708,4.824,4495.0,4494.8,0.224]
[1758111153917,3.9111,4494.9,4494.8,0.224]
[1758111154600,7.9111,4494.9,4494.7,0.0222]
[1758111154805,3.9111,4494.9,4494.7,0.0222]
[1758111155314,4.92578,4494.8,4494.7,0.0222]
[1758111155708,0.1207,4494.5,4494.4,0.224]
[1758111155916,0.824,4494.5,4494.4,0.224]
[1758111156121,0.824,4494.5,4494.0,0.303]
[1758111156413,0.7033,4494.1,4494.0,0.7399]
[1758111159309,0.7033,4494.1,4494.0,0.9464]
[1758111159515,0.7033,4494.1,4494.0,1.0721]
[1758111159710,0.1958,4494.1,4494.0,1.0721]
[1758111160417,0.5108,4494.1,4494.0,1.0721]
[1758111161015,0.1958,4494.1,4494.0,1.0721]
[1758111162017,0.315,4494.3,4494.0,1.0721]
[1758111162211,3.2078,4494.9,4494.6,0.4233]
[1758111162416,3.9469,4494.9,4494.8,0.7225]
[1758111163419,3.6319,4494.9,4494.8,0.7225]
[1758111163722,3.4181,4494.9,4494.8,0.7225]
[1758111164519,3.2078,4494.9,4494.8,0.7225]
[1758111164823,1.6482,4495.4,4495.3,0.7225]
[1758111165422,0.9091,4495.4,4495.3,0.7225]
[1758111166123,3.3285,4496.0,4495.3,0.4233]
[1758111166323,0.2103,4495.4,4495.3,0.4233]
[1758111166524,0.5253,4495.4,4495.3,0.4233]
[1758111166822,0.5253,4495.4,4495.3,0.7225]
[1758111167924,0.2103,4495.4,4495.3,0.7225]
[1758111168224,0.5253,4495.4,4495.3,0.7225]
[1758111168925,0.2103,4495.4,4495.3,0.7225]
[1758111169122,1.5484,4495.6,4495.5,0.1257]
[1758111169425,1.7587,4495.6,4495.5,0.8482]
[1758111169726,2.2875,4495.6,4495.5,0.8482]
[1758111170120,1.7587,4495.6,4495.5,0.8482]
[1758111170317,1.5484,4495.6,4495.5,0.8482]
[1758111170926,2.2875,4495.6,4495.5,0.7225]
[1758111171320,2.2875,4495.6,4495.5,0.9465]
[1758111172125,2.2875,4495.6,4495.5,1.0722]
[1758111172324,1.9725,4495.6,4495.5,1.0722]
[1758111172520,1.7587,4495.6,4495.5,1.0722]
[1758111175023,2.0737,4495.6,4495.5,1.0722]
[1758111175627,0.7391,4495.4,4495.3,0.0222]
[1758111176224,0.1184,4495.0,4494.6,0.224]
[1758111176531,0.7274,4494.7,4494.6,0.5223]
[1758111176929,0.7274,4494.7,4494.6,0.514]
[1758111177333,0.7274,4494.7,4494.5,0.224]
[1758111177523,0.7274,4494.7,4494.4,0.224]
[1758111177925,0.7274,4494.7,4494.5,0.2983]
[1758111178431,0.7274,4494.7,4494.4,0.224]
[1758111179030,0.7274,4494.7,4494.5,0.2983]
[1758111180126,0.1184,4494.5,4494.0,3.2078]
[1758111180325,0.7274,4494.1,4494.0,3.2078]
[1758111180522,0.7274,4494.1,4494.0,3.4318]
[1758111180926,0.7274,4494.1,4494.0,3.9458]
[1758111181830,0.7274,4494.1,4494.0,4.1585]
[1758111182430,0.7274,4494.1,4494.0,4.2857]
[1758111182937,0.7274,4494.1,4494.0,3.7218]
[1758111183127,0.7274,4494.1,4494.0,3.9458]
[1758111184029,0.7274,4494.1,4494.0,0.738]
[1758111184225,0.1184,4494.0,4493.6,0.514]
[1758111184430,0.4047,4493.8,4493.7,0.224]
[1758111184631,0.7274,4493.8,4493.6,0.2983]
[1758111184834,0.4047,4493.2,4493.1,32.3403]
[1758111185031,0.7274,4493.2,4493.1,32.5643]
[1758111185537,0.7274,4493.2,4493.1,32.3403]
[1758111185735,0.7274,4493.2,4493.1,32.5643]
[1758111186730,0.4047,4493.2,4493.1,32.5643]
[1758111187437,0.8503,4493.3,4493.1,32.5643]
[1758111187833,0.8503,4493.3,4493.2,0.7051]
[1758111188832,0.8503,4493.3,4493.2,0.9291]
[1758111189538,0.8503,4493.3,4493.2,5.15166]
[1758111189740,0.496,4494.4,4493.3,0.22254999]
[1758111189937,0.2914,4494.2,4493.7,3.2078]
[1758111190133,3.5308,4494.5,4493.8,0.224]
[1758111190437,0.496,4494.4,4493.8,0.224]
[1758111191036,0.2914,4493.9,4493.8,0.224]
[1758111191236,0.7109,4493.9,4493.8,0.224]
[1758111192434,0.2914,4493.9,4493.8,0.224]
[1758111193030,0.8704,4494.3,4493.8,0.224]
[1758111193031,0.2914,4494.2,4493.8,0.224]
[1758111194629,0.2914,4493.9,4493.8,0.224]
[1758111195138,0.496,4493.8,4493.7,3.2078]
[1758111195441,0.496,4493.8,4493.7,3.4318]
[1758111197033,0.2914,4493.8,4493.7,3.4318]
[1758111197739,0.4106,4494.0,4493.7,3.4318]
[1758111197943,0.2914,4493.9,4493.7,3.4318]
[1758111198346,1.1618,4494.3,4493.7,3.4318]
[1758111198645,1.1618,4494.3,4494.2,3.2078]
[1758111198840,1.1618,4494.3,4494.2,3.4318]
[1758111199044,0.2914,4494.3,4494.2,3.4318]
[1758111200342,0.496,4494.3,4494.2,3.4318]
[1758111210553,0.7109,4494.3,4494.2,3.4318]
[1758111211059,0.7109,4494.3,4494.2,3.2078]
[1758111211259,0.7109,4494.3,4494.2,3.4318]
[1758111214955,0.7109,4494.3,4494.2,3.2078]
[1758111215155,0.7109,4494.3,4494.2,3.4318]
[1758111216964,0.2914,4494.3,4494.2,3.4318]
[1758111218763,0.5009,4494.3,4494.2,3.4318]
[1758111226969,0.2914,4494.3,4494.2,3.4318]
[1758111228674,0.5009,4494.3,4494.2,3.4318]
[1758111239675,4.63651,4494.3,4494.0,2.00210851]
[1758111239878,4.63651,4494.3,4493.8,0.0222]
[1758111239879,0.435,4494.0,4493.8,0.0222]
[1758111240082,0.7283,4493.9,4493.8,0.0222]
[1758111240280,0.3125,4493.8,4493.7,3.2078]
[1758111240480,0.7283,4493.8,4493.7,3.2078]
[1758111240980,0.7283,4493.8,4493.7,3.4318]
[1758111241176,0.7283,4493.8,4493.4,2.00210851]
[1758111241177,0.1225,4493.5,4493.4,2.00210851]
[1758111241386,0.5268,4493.4,4493.2,3.2078]
[1758111241576,0.5268,4493.4,4493.3,32.268]
[1758111244882,0.5268,4493.4,4493.3,32.044]
[1758111245078,0.1225,4493.0,4492.9,0.0222]
[1758111245288,0.8508,4493.0,4492.9,0.2462]
[1758111245580,0.8508,4493.0,4492.9,0.224]
[1758111255685,0.44,4493.0,4492.9,0.224]
[1758111255878,0.8619,4493.0,4492.9,0.224]
[1758111256077,0.5444,4493.0,4492.7,0.224]
[1758111256277,0.7394,4492.8,4492.7,0.224]
[1758111256590,0.7394,4492.8,4492.6,0.0222]
[1758111256787,0.7394,4492.8,4492.5,0.224]
[1758111257178,0.7394,4492.8,4492.1,3.2078]
[1758111257384,0.1225,4493.0,4491.6,3.2078]
[1758111257385,0.3175,4491.7,4491.6,3.2078]
[1758111257691,0.7394,4491.7,4491.6,3.4318]
[1758111258280,0.7394,4491.7,4491.6,0.224]
[1758111258480,0.4219,4491.7,4491.1,3.2078]
[1758111258684,0.7394,4491.3,4491.2,0.224]
[1758111266991,0.5248,4491.3,4491.2,0.224]
[1758111267994,0.7394,4491.3,4491.2,0.224]
[1758111272801,0.3175,4491.3,4491.2,0.224]
[1758111277302,0.5248,4491.3,4491.2,0.224]
[1758111278504,0.3175,4491.3,4491.2,0.62465]
[1758111280902,0.1291,4492.0,4491.5,0.2637]
[1758111281208,0.5264,4492.0,4491.9,3.4075]
[1758111281401,0.5264,4492.0,4491.9,3.6315]
[1758111282907,0.8315,4492.0,4491.9,3.6315]
[1758111285103,0.8315,4492.0,4491.9,3.8376]
[1758111285304,0.8315,4492.0,4491.9,4.1013]
[1758111285805,0.8315,4492.0,4491.9,3.8376]
[1758111291812,0.8315,4492.0,4491.9,4.01770138]
[1758111294511,0.8315,4492.0,4491.9,4.28140138]
[1758111295416,0.3051,4492.0,4491.9,4.28140138]
[1758111295919,0.5052,4492.0,4491.9,4.28140138]
[1758111296511,0.6312,4492.0,4491.9,4.28140138]
[1758111300213,0.8332,4492.0,4491.9,3.8376]
[1758111300414,0.8332,4492.0,4491.9,3.2078]
[1758111300619,0.8332,4492.0,4491.9,3.4318]
[1758111304226,0.8332,4492.0,4491.9,3.643]
[1758111305120,0.8332,4492.0,4491.9,3.2078]
[1758111305322,0.8332,4492.0,4491.9,3.4318]
[1758111307217,0.8777,4491.5,4491.4,0.4155]
[1758111307422,0.8777,4491.5,4491.4,0.0222]
[1758111307623,0.8777,4491.5,4491.4,0.224]
[1758111308320,0.324,4491.4,4491.3,3.2078]
[1758111308521,0.7498,4491.4,4491.3,3.4318]
[1758111310219,0.7498,4491.4,4490.8,0.2637]
[1758111310220,0.1279,4491.0,4490.8,3.2078]
[1758111310422,0.1279,4491.0,4490.8,3.4041]
[1758111310423,0.7498,4490.9,4490.8,3.4041]
[1758111310729,0.7498,4490.9,4490.8,3.6281]
[1758111311627,1.4097,4490.9,4490.8,3.6281]
[1758111312727,1.4097,4490.9,4490.8,4.0888]
[1758111313140,1.1988,4490.9,4490.8,4.0888]
[1758111318135,1.1988,4490.9,4490.8,3.8648]
[1758111318331,1.1988,4490.9,4490.8,4.0888]
[1758111331143,0.126,4492.0,4490.8,8.04777]
[1758111331437,0.324,4491.9,4491.4,1.99769061]
[1758111331642,0.324,4491.9,4491.8,3.2078]
[1758111331835,0.324,4491.9,4491.8,3.4318]
[1758111332036,0.7498,4491.9,4491.8,3.2078]
[1758111332435,0.7498,4491.9,4491.8,3.4318]
[1758111332635,0.1279,4491.5,4491.2,1.99769061]
[1758111332832,0.7498,4490.7,4490.5,0.0222]
[1758111333236,0.7498,4490.7,4490.6,0.224]
[1758111333930,4.64848,4490.7,4489.3,5.20549061]
[1758111334134,0.8777,4489.5,4489.4,0.224]
[1758111334538,0.4519,4489.5,4489.4,0.224]
[1758111334734,0.1279,4490.0,4489.4,0.224]
[1758111334735,0.4519,4490.0,4489.4,4.224]
[1758111334938,0.4519,4490.0,4489.9,3.2078]
[1758111335137,0.4519,4490.0,4489.9,3.4318]
[1758111335343,0.8777,4490.0,4489.9,3.4318]
[1758111335643,0.8777,4490.0,4489.9,3.2078]
[1758111335838,0.8777,4490.0,4489.9,3.4318]
[1758111336238,0.8777,4490.0,4489.1,2.01996704]
[1758111336239,0.1279,4489.5,4489.4,3.2078]
[1758111336438,0.8777,4489.5,4489.4,3.4318]
[1758111336940,0.4519,4489.5,4489.4,3.4318]
[1758111337944,0.2928,4489.9,4489.4,7.65454]
[1758111338136,0.2928,4489.9,4489.4,3.65454]
[1758111338842,0.4207,4490.0,4489.4,3.4318]
[1758111339043,0.4207,4490.0,4489.9,3.2078]
[1758111339243,0.4207,4490.0,4489.9,3.4318]
[1758111342644,0.6193,4490.0,4489.9,3.4318]
[1758111343351,0.4207,4490.0,4489.9,3.4318]
[1758111344446,0.4207,4490.0,4489.9,3.2078]
[1758111344749,0.4207,4490.0,4489.9,3.4318]
[1758111346848,0.1279,4490.5,4489.9,3.4318]
[1758111347147,0.1279,4490.5,4490.4,3.2078]
[1758111347148,0.4207,4490.5,4490.4,3.2078]
[1758111347342,0.6193,4490.5,4490.4,3.4318]
[1758111348743,0.8248,4490.5,4490.4,3.4318]
[1758111349252,0.8248,4490.5,4490.4,3.2078]
[1758111349554,0.8248,4490.5,4490.4,3.4318]
[1758111350951,0.4207,4490.5,4490.4,3.4318]
[1758111352149,0.1279,4491.0,4490.4,4.0081247]
[1758111352449,0.4207,4491.0,4490.9,3.2078]
[1758111352653,0.6193,4491.0,4490.9,3.4318]
[1758111352954,0.4207,4491.0,4490.9,3.4318]
[1758111353652,0.6193,4491.0,4490.9,3.4318]
[1758111354052,0.8248,4491.0,4490.9,3.4318]
[1758111356852,0.4207,4491.0,4490.9,3.4318]
[1758111358658,0.6203,4491.0,4490.9,3.4318]
[1758111358855,0.8244,4491.0,4490.9,3.4318]
[1758111363158,0.8244,4491.0,4490.9,3.2078]
[1758111363359,0.8244,4491.0,4490.9,3.4318]
[1758111365557,0.8244,4491.0,4490.9,3.2078]
[1758111365762,0.8244,4491.0,4490.9,3.4318]
[1758111370968,0.8244,4491.0,4490.9,3.2078]
[1758111371160,0.8244,4491.0,4490.9,0.224]
[1758111373972,0.8244,4491.0,4490.4,3.2078]
[1758111373973,0.8202,4490.5,4490.4,3.2078]
[1758111374172,0.8202,4490.5,4490.4,3.4318]
[1758111375871,0.8202,4490.5,4490.4,3.2078]
[1758111376177,0.8202,4490.5,4490.4,3.4318]
[1758111381280,0.6203,4490.5,4490.4,3.4318]
[1758111381782,0.4206,4490.5,4490.4,3.4318]
[1758111385283,0.6203,4490.5,4490.4,3.4318]
[1758111386984,0.6203,4490.5,4490.4,3.2078]
[1758111387188,0.4206,4490.5,4490.4,3.4318]
[1758111391383,0.1249,4491.5,4491.4,0.4182]
[1758111391580,0.5245,4491.5,4491.4,3.85]
[1758111392081,0.5245,4491.5,4491.4,3.6369]
[1758111392674,0.5245,4491.5,4491.4,3.4129]
[1758111392882,0.5245,4491.5,4491.4,3.4318]
[1758111393485,0.8241,4491.5,4491.4,3.4318]
[1758111394583,0.8241,4491.5,4491.4,3.6369]
[1758111397293,0.508,4491.0,4490.9,0.4137]
[1758111397484,0.508,4491.0,4490.9,0.6377]
[1758111397790,0.8004,4491.0,4490.9,0.6377]
[1758111400491,0.8004,4491.0,4490.9,0.7896]
[1758111401485,0.4093,4491.0,4490.9,0.7896]
[1758111402687,0.6045,4491.0,4490.9,0.7896]
[1758111402888,0.6045,4491.0,4490.9,0.6377]
[1758111403286,0.6045,4491.0,4490.9,0.7896]
[1758111403691,0.8004,4491.0,4490.9,0.6377]
[1758111403891,0.8004,4491.0,4490.9,0.4249]
[1758111408798,0.6835,4490.9,4490.8,3.2078]
[1758111408993,0.6835,4490.9,4490.8,3.4318]
[1758111409994,0.6835,4490.9,4490.8,3.6327]
[1758111411397,0.6835,4490.9,4490.8,3.4318]